[Event "FIDE Online Semi Final 2020"]
[Site "Online"]
[Date "2020.08.29"]
[Round "1"]
[White "Wojtaszek, Radoslaw"]
[Black "Vidit, Santosh Gujrathi"]
[Result "1-0"]
[ECO "E06"]
[WhiteElo "2662"]
[BlackElo "2630"]
[Annotator "ChessBase"]
[PlyCount "99"]
[EventDate "2020.08.28"]
[EventType "k.o."]
[SourceTitle "playchess.com"]
[Source "ChessBase"]
[SourceQuality "1"]
[TimeControl "900+5"]

1. d4 {[%emt 0:00:01]} Nf6 {[%emt 0:00:02]} 2. c4 {[%emt 0:00:01]} e6 {[%emt 0:00:01]} 3. g3 {[%emt 0:00:01]} Bb4+ {[%emt 0:00:01]} 4. Nd2 {[%emt 0:00:20]} c5 {[%emt 0:00:02]} 5. dxc5 {[%emt 0:00:07]} Bxc5 {[%emt 0:00:10]} 6. Bg2 {[%emt 0:00:03]} O-O {[%emt 0:00:07]} 7. Ngf3 {[%emt 0:00:04]} Nc6 {[%emt 0:00:21]} 8. O-O {[%emt 0:00:07]} d5 {[%emt 0:00:02]} 9. a3 {[%emt 0:00:49]} a5 {[%emt 0:00:03]} 10. cxd5 {[%emt 0:00:30]} exd5 {[%emt 0:00:02]} 11. Nb3 {[%emt 0:00:01]} Bb6 {[%emt 0:00:20]} 12. Nbd4 {[%emt 0:00:03]} Nxd4 {[%emt 0:01:17]} 13. Nxd4 {[%emt 0:00:04]} Re8 {[%emt 0:00:06]} 14. e3 {[%emt 0:01:00]} Bg4 {[%emt 0:00:28]} 15. Qd3 {[%emt 0:00:03]} Qd7 {[%emt 0:00:20]} 16. Bd2 {[%emt 0:00:17]} a4 {[%emt 0:00:46]} 17. Rac1 {[%emt 0:00:23]} h5 {[%emt 0:00:35]} 18. Bc3 {[%emt 0:03:10]} h4 {[%emt 0:00:26]} 19. Nf3 {[%emt 0:01:13]} h3 {[%emt 0:03:06]} 20. Bh1 {[%emt 0:00:04]} Bf5 {[%emt 0:00:03]} 21. Qd1 {[%emt 0:00:14]} Ne4 {[%emt 0:00:04]} 22. Nd4 {[%emt 0:01:04]} Bg6 {[%emt 0:00:19]} 23. Bf3 {[%emt 0:00:03]} Nf6 {[%emt 0:01:02]} 24. Ne2 {[%emt 0:00:26]} Be4 {[%emt 0:00:59]} 25. Nf4 {[%emt 0:00:03]} d4 {[%emt 0:00:47]} 26. Bxd4 {[%emt 0:00:39]} Bxd4 {[%emt 0:00:06]} 27. exd4 {[%emt 0:00:02]} Rad8 {[%emt 0:00:44]} 28. Re1 {[%emt 0:01:43]} Bxf3 {[%emt 0:00:50]} 29. Qxf3 {[%emt 0:00:13]} Qxd4 {[%emt 0:00:02]} 30. Rxe8+ {[%emt 0:00:35]} Rxe8 {[%emt 0:00:01]} 31. Qxb7 {[%emt 0:00:34]} Qc5 {[%emt 0:01:32]} 32. Rd1 {[%emt 0:01:16]} Qc2 {[%emt 0:00:45]} 33. Qf3 {[%emt 0:01:05]} Qf5 {[%emt 0:00:04]} 34. Qd3 {[%emt 0:00:05]} Qg4 {[%emt 0:01:13]} 35. Qf1 {[%emt 0:00:20]} Rb8 {[%emt 0:00:47]} 36. Nxh3 {[%emt 0:00:03]} Rxb2 {[%emt 0:00:05]} 37. Rd8+ {[%emt 0:00:29]} Kh7 {[%emt 0:00:01]} 38. Qd3+ {[%emt 0:00:01]} g6 {[%emt 0:00:01]} 39. Nf4 {[%emt 0:00:02]} Rb3 {[%emt 0:00:10]} 40. Qc4 {[%emt 0:00:10]} Kg7 {[%emt 0:00:08]} 41. Qc5 {[%emt 0:00:04]} Nh7 {[%emt 0:00:17]} 42. Qd4+ {[%emt 0:00:09]} Kh6 {[%emt 0:00:08]} 43. Rg8 {[%emt 0:00:29]} Qf3 {[%emt 0:00:01]} 44. Qg7+ {[%emt 0:00:10]} Kg5 {[%emt 0:00:01]} 45. Qe5+ {[%emt 0:00:08]} Kh6 {[%emt 0:00:00]} 46. Qg7+ {[%emt 0:00:08]} Kg5 {[%emt 0:00:01]} 47. Ne6+ {[%emt 0:00:12]} Kg4 {[%emt 0:00:07]} 48. Qd4+ {[%emt 0:00:02]} Kf5 {[%emt 0:00:05]} 49. Ng7+ {[%emt 0:00:07]} Kg5 {[%emt 0:00:01]} 50. Qh4# {[%emt 0:00:02]} 1-0

[Event "FIDE Online Semi Final 2020"]
[Site "Online"]
[Date "2020.08.29"]
[Round "1"]
[White "Nihal, Sarinn"]
[Black "Janik, Igor"]
[Result "1-0"]
[ECO "E16"]
[WhiteElo "2628"]
[BlackElo "2390"]
[Annotator "ChessBase"]
[PlyCount "137"]
[EventDate "2020.08.28"]
[EventType "k.o."]
[SourceTitle "playchess.com"]
[Source "ChessBase"]
[SourceQuality "1"]
[TimeControl "900+5"]

1. d4 {[%emt 0:00:01]} Nf6 {[%emt 0:00:02]} 2. c4 {[%emt 0:00:13]} e6 {[%emt 0:00:04]} 3. Nf3 {[%emt 0:00:00]} b6 {[%emt 0:00:01]} 4. g3 {[%emt 0:00:05]} Bb7 {[%emt 0:00:01]} 5. Bg2 {[%emt 0:00:01]} c5 {[%emt 0:00:01]} 6. d5 {[%emt 0:00:09]} exd5 {[%emt 0:00:00]} 7. Ng5 {[%emt 0:00:01]} h6 {[%emt 0:00:19]} 8. Nh3 {[%emt 0:00:03]} b5 {[%emt 0:00:01]} 9. Nc3 {[%emt 0:03:44]} bxc4 {[%emt 0:00:05]} 10. Nf4 {[%emt 0:00:01]} Be7 {[%emt 0:00:38]} 11. Nfxd5 {[%emt 0:00:50]} Bxd5 {[%emt 0:00:11]} 12. Nxd5 {[%emt 0:00:08]} Nc6 {[%emt 0:00:23]} 13. O-O {[%emt 0:00:21]} O-O {[%emt 0:00:13]} 14. Bf4 {[%emt 0:01:14]} Nxd5 {[%emt 0:02:53]} 15. Qxd5 {[%emt 0:00:52]} Rc8 {[%emt 0:00:15]} 16. Qxc4 {[%emt 0:00:44]} Bf6 {[%emt 0:01:58]} 17. Bd6 {[%emt 0:01:27]} Re8 {[%emt 0:00:38]} 18. Bd5 {[%emt 0:00:23]} Ne5 {[%emt 0:00:17]} 19. Bxe5 {[%emt 0:00:47]} Rxe5 {[%emt 0:00:03]} 20. Bxf7+ {[%emt 0:00:01]} Kh8 {[%emt 0:00:33]} 21. Rad1 {[%emt 0:00:39]} Rb8 {[%emt 0:00:46]} 22. b3 {[%emt 0:00:10]} Qe7 {[%emt 0:00:07]} 23. Bg6 {[%emt 0:01:41]} Rxe2 {[%emt 0:01:48]} 24. Rxd7 {[%emt 0:00:05]} Qxd7 {[%emt 0:00:03]} 25. Qxe2 {[%emt 0:00:01]} Bd4 {[%emt 0:00:11]} 26. Bd3 {[%emt 0:00:16]} Qc6 {[%emt 0:01:50]} 27. Bb1 {[%emt 0:01:04]} g6 {[%emt 0:01:27]} 28. Be4 {[%emt 0:00:55]} Qe6 {[%emt 0:00:25]} 29. Kg2 {[%emt 0:00:05]} Re8 {[%emt 0:00:11]} 30. f3 {[%emt 0:00:06]} Kg7 {[%emt 0:00:10]} 31. Rd1 {[%emt 0:00:07]} Rd8 {[%emt 0:00:15]} 32. Qb5 {[%emt 0:00:11]} Qe7 {[%emt 0:00:16]} 33. Qc4 {[%emt 0:00:17]} Rd6 {[%emt 0:00:49]} 34. h4 {[%emt 0:00:34]} Re6 {[%emt 0:00:15]} 35. Qc2 {[%emt 0:00:16]} g5 {[%emt 0:00:23]} 36. hxg5 {[%emt 0:00:02]} hxg5 {[%emt 0:00:00]} 37. Rh1 {[%emt 0:00:21]} Rh6 {[%emt 0:00:01]} 38. Rxh6 {[%emt 0:00:01]} Kxh6 {[%emt 0:00:00]} 39. Qd1 {[%emt 0:00:07]} Qf7 {[%emt 0:00:16]} 40. Qh1+ {[%emt 0:00:04]} Qh5 {[%emt 0:00:02]} 41. Qf1 {[%emt 0:00:04]} g4 {[%emt 0:00:17]} 42. Qa6+ {[%emt 0:00:03]} Kg7 {[%emt 0:00:02]} 43. Qxa7+ {[%emt 0:00:01]} Kf6 {[%emt 0:00:05]} 44. Qb6+ {[%emt 0:00:02]} Kg7 {[%emt 0:00:05]} 45. Qc7+ {[%emt 0:00:01]} Kf6 {[%emt 0:00:06]} 46. Qf4+ {[%emt 0:00:06]} Ke7 {[%emt 0:00:02]} 47. Qc7+ {[%emt 0:00:06]} Kf6 {[%emt 0:00:03]} 48. Qd6+ {[%emt 0:00:02]} Kg7 {[%emt 0:00:02]} 49. Qe7+ {[%emt 0:00:09]} Kg8 {[%emt 0:00:08]} 50. Qe6+ {[%emt 0:00:01]} Kf8 {[%emt 0:00:03]} 51. Qxg4 {[%emt 0:00:01]} Qh6 {[%emt 0:00:06]} 52. Qf5+ {[%emt 0:00:05]} Ke7 {[%emt 0:00:01]} 53. f4 {[%emt 0:00:01]} Qa6 {[%emt 0:00:12]} 54. Qh7+ {[%emt 0:00:06]} Kf8 {[%emt 0:00:03]} 55. Qf5+ {[%emt 0:00:03]} Ke7 {[%emt 0:00:01]} 56. Qg5+ {[%emt 0:00:04]} Kf8 {[%emt 0:00:09]} 57. Qd8+ {[%emt 0:00:04]} Kf7 {[%emt 0:00:12]} 58. Qc7+ {[%emt 0:00:18]} Kf8 {[%emt 0:00:07]} 59. Qb8+ {[%emt 0:00:01]} Ke7 {[%emt 0:00:00]} 60. Qb7+ {[%emt 0:00:01]} Qxb7 {[%emt 0:00:01]} 61. Bxb7 {[%emt 0:00:00]} Kd6 {[%emt 0:00:02]} 62. Ba6 {[%emt 0:00:02]} Ke6 {[%emt 0:00:03]} 63. Bc4+ {[%emt 0:00:00]} Kf6 {[%emt 0:00:01]} 64. a4 {[%emt 0:00:00]} Bc3 {[%emt 0:00:03]} 65. Kf3 {[%emt 0:00:00]} Ba5 {[%emt 0:00:01]} 66. g4 {[%emt 0:00:00]} Bb4 {[%emt 0:00:01]} 67. g5+ {[%emt 0:00:00]} Kg7 {[%emt 0:00:00]} 68. Kg4 {[%emt 0:00:00]} Bd2 {[%emt 0:00:02]} 69. f5 {[%emt 0:00:00]} 1-0

[Event "FIDE Online Semi Final 2020"]
[Site "Online"]
[Date "2020.08.29"]
[Round "1"]
[White "Koneru, Humpy"]
[Black "Socko, Monika"]
[Result "1/2-1/2"]
[ECO "E17"]
[WhiteElo "2411"]
[BlackElo "2358"]
[Annotator "ChessBase"]
[PlyCount "67"]
[EventDate "2020.08.28"]
[EventType "k.o."]
[SourceTitle "playchess.com"]
[Source "ChessBase"]
[SourceQuality "1"]
[TimeControl "900+5"]

1. d4 {[%emt 0:00:01]} Nf6 {[%emt 0:00:03]} 2. c4 {[%emt 0:00:03]} e6 {[%emt 0:00:01]} 3. Nf3 {[%emt 0:00:03]} b6 {[%emt 0:00:02]} 4. g3 {[%emt 0:00:04]} Bb7 {[%emt 0:00:01]} 5. Bg2 {[%emt 0:00:04]} Be7 {[%emt 0:00:01]} 6. O-O {[%emt 0:00:04]} O-O {[%emt 0:00:02]} 7. Re1 {[%emt 0:00:10]} a5 {[%emt 0:00:02]} 8. Nc3 {[%emt 0:01:30]} Ne4 {[%emt 0:00:05]} 9. Qc2 {[%emt 0:00:23]} Nxc3 {[%emt 0:00:04]} 10. bxc3 {[%emt 0:00:02]} f5 {[%emt 0:00:10]} 11. Ne5 {[%emt 0:00:32]} Bxg2 {[%emt 0:00:06]} 12. Kxg2 {[%emt 0:00:01]} d6 {[%emt 0:00:05]} 13. Nd3 {[%emt 0:00:28]} Qd7 {[%emt 0:01:10]} 14. f3 {[%emt 0:01:16]} Nc6 {[%emt 0:01:43]} 15. Qa4 {[%emt 0:03:13]} Rae8 {[%emt 0:01:08]} 16. Qb5 {[%emt 0:01:45]} Bf6 {[%emt 0:01:45]} 17. Ba3 {[%emt 0:00:55]} e5 {[%emt 0:01:25]} 18. d5 {[%emt 0:00:17]} Nb8 {[%emt 0:00:02]} 19. e4 {[%emt 0:00:52]} fxe4 {[%emt 0:01:11]} 20. Rxe4 {[%emt 0:00:03]} Qf7 {[%emt 0:00:04]} 21. Rf1 {[%emt 0:01:13]} Bg5 {[%emt 0:00:27]} 22. Qb1 {[%emt 0:00:52]} Nd7 {[%emt 0:00:10]} 23. Bc1 {[%emt 0:00:45]} Bxc1 {[%emt 0:00:27]} 24. Qxc1 {[%emt 0:00:02]} Nf6 {[%emt 0:00:03]} 25. Re3 {[%emt 0:00:26]} Qg6 {[%emt 0:00:02]} 26. Nf2 {[%emt 0:00:35]} e4 {[%emt 0:01:18]} 27. f4 {[%emt 0:00:49]} Ng4 {[%emt 0:00:14]} 28. Nxg4 {[%emt 0:00:08]} Qxg4 {[%emt 0:00:01]} 29. Qc2 {[%emt 0:00:15]} Qg6 {[%emt 0:00:25]} 30. Kh1 {[%emt 0:00:11]} Re7 {[%emt 0:00:02]} 31. Rfe1 {[%emt 0:00:04]} Rfe8 {[%emt 0:00:03]} 32. Qg2 {[%emt 0:00:12]} Qf5 {[%emt 0:00:08]} 33. a4 {[%emt 0:00:08]} h5 {[%emt 0:00:21]} 34. Qe2 {[%emt 0:00:08]} 1/2-1/2

[Event "FIDE Online Semi Final 2020"]
[Site "Online"]
[Date "2020.08.29"]
[Round "1"]
[White "Cyfka, Karina"]
[Black "Harika, Dronavalli"]
[Result "1/2-1/2"]
[ECO "D31"]
[WhiteElo "2248"]
[BlackElo "2448"]
[Annotator "ChessBase"]
[PlyCount "52"]
[EventDate "2020.08.28"]
[EventType "k.o."]
[SourceTitle "playchess.com"]
[Source "ChessBase"]
[SourceQuality "1"]
[TimeControl "900+5"]

1. d4 {[%emt 0:00:01]} d5 {[%emt 0:00:04]} 2. c4 {[%emt 0:00:05]} e6 {[%emt 0:00:10]} 3. Nf3 {[%emt 0:00:18]} a6 {[%emt 0:00:01]} 4. cxd5 {[%emt 0:00:25]} exd5 {[%emt 0:00:02]} 5. Nc3 {[%emt 0:00:06]} h6 {[%emt 0:00:02]} 6. Bf4 {[%emt 0:00:06]} Nf6 {[%emt 0:00:03]} 7. h3 {[%emt 0:00:14]} Bd6 {[%emt 0:00:05]} 8. Bxd6 {[%emt 0:00:34]} Qxd6 {[%emt 0:00:02]} 9. e3 {[%emt 0:00:04]} O-O {[%emt 0:00:25]} 10. Bd3 {[%emt 0:00:02]} b6 {[%emt 0:00:02]} 11. O-O {[%emt 0:00:05]} Bb7 {[%emt 0:00:01]} 12. Qc2 {[%emt 0:00:21]} Nbd7 {[%emt 0:00:16]} 13. Rac1 {[%emt 0:00:13]} Rac8 {[%emt 0:01:12]} 14. Qe2 {[%emt 0:00:33]} b5 {[%emt 0:00:15]} 15. Bb1 {[%emt 0:00:19]} Rfe8 {[%emt 0:00:07]} 16. Rfd1 {[%emt 0:00:25]} Ne4 {[%emt 0:00:21]} 17. Nxe4 {[%emt 0:00:22]} dxe4 {[%emt 0:00:02]} 18. Nd2 {[%emt 0:00:07]} Bd5 {[%emt 0:01:00]} 19. Rc3 {[%emt 0:00:45]} Qe7 {[%emt 0:00:59]} 20. Nb3 {[%emt 0:01:38]} Bc4 {[%emt 0:01:12]} 21. Rxc4 {[%emt 0:02:07]} bxc4 {[%emt 0:00:02]} 22. Qxc4 {[%emt 0:00:00]} Qd6 {[%emt 0:00:44]} 23. Nd2 {[%emt 0:01:05]} Nf6 {[%emt 0:00:20]} 24. Nb3 {[%emt 0:00:03]} Nd7 {[%emt 0:00:01]} 25. Nd2 {[%emt 0:00:02]} Nf6 {[%emt 0:00:02]} 26. Nb3 {[%emt 0:00:02]} Nd7 {[%emt 0:00:23]} 1/2-1/2

[Event "FIDE Online Semi Final 2020"]
[Site "Online"]
[Date "2020.08.29"]
[Round "1"]
[White "Sliwicka, Alicja"]
[Black "Divya, Deshmukh"]
[Result "1-0"]
[ECO "B55"]
[WhiteElo "2176"]
[BlackElo "2125"]
[Annotator "NA"]
[PlyCount "53"]
[EventDate "2020.08.28"]
[EventType "k.o."]
[SourceTitle "playchess.com"]
[Source "ChessBase"]
[SourceQuality "1"]
[TimeControl "900+5"]

1. e4 {[%emt 0:00:02]} c5 {[%emt 0:00:02]} 2. Nf3 {[%emt 0:00:02]} d6 {[%emt 0:00:02]} 3. d4 {[%emt 0:00:02]} cxd4 {[%emt 0:00:00]} 4. Nxd4 {[%emt 0:00:01]} Nf6 {[%emt 0:00:01]} 5. f3 {[%emt 0:00:04]} Nc6 {[%emt 0:00:02]} 6. c4 {[%emt 0:00:05]} e6 {[%emt 0:00:11]} 7. Nc3 {[%emt 0:00:09]} Be7 {[%emt 0:00:09]} 8. Be2 {[%emt 0:00:12]} O-O {[%emt 0:00:47]} 9. Be3 {[%emt 0:00:11]} d5 {[%emt 0:00:16]} 10. cxd5 {[%emt 0:01:10]} exd5 {[%emt 0:00:00]} 11. Nxc6 {[%emt 0:00:33] B55: Sicilian: 2...d6 3 d4 cxd4 4 Nxd4 Nf6 5 f3.} bxc6 {[%emt 0:00:00]} 12. exd5 {[%emt 0:00:21]} Nxd5 {[%emt 0:00:03]} 13. Nxd5 {[%emt 0:00:40]} cxd5 {[%emt 0:00:00]} 14. O-O {[%emt 0:00:12]} Bf6 {[%emt 0:02:16]} 15. Qd2 {[%emt 0:00:17] [#]} Rb8 $146 {[%emt 0:02:55]} ({Predecessor:} 15... Re8 16. Bf2 Rb8 17. Rab1 Bf5 18. Bd3 Bxd3 19. Qxd3 Rxb2 20. Rxb2 Bxb2 21. Qc2 Be5 22. Bxa7 {0-1 (72) Janani,J (1808)-Shweta,G (1922) Chennai 2011}) 16. Rab1 {[%emt 0:00:10]} Bf5 {[%emt 0:01:50]} 17. Bd3 {[%emt 0:01:19]} Rxb2 {[%emt 0:03:06]} 18. Rxb2 {[%emt 0:00:13]} Bxd3 {[%emt 0:00:02]} 19. Rd1 $11 {[%emt 0:02:32]} Bxb2 {[%emt 0:00:33]} 20. Qxd3 {[%emt 0:00:55]} Qe7 {[%emt 0:02:09]} 21. Bf2 {[%emt 0:02:10]} d4 {[%emt 0:00:37]} 22. Rb1 {[%emt 0:01:04]} Qb4 {[%emt 0:01:33]} 23. Be1 {[%emt 0:02:04]} Qa3 {[%emt 0:00:10]} 24. Qc4 {[%emt 0:00:45]} Re8 {[%emt 0:00:09]} 25. Qb5 {[%emt 0:00:38]} Qe3+ {[%emt 0:00:06]} 26. Bf2 {[%emt 0:00:02]} Qc3 {[%emt 0:00:05]} 27. Qxe8# {[%emt 0:00:05]} 1-0

[Event "FIDE Online Semi Final 2020"]
[Site "Online"]
[Date "2020.08.29"]
[Round "1.2"]
[White "Vidit, Santosh Gujrathi"]
[Black "Gajewski, Grzegorz"]
[Result "*"]
[ECO "D38"]
[WhiteElo "2630"]
[BlackElo "2515"]
[Annotator "ChessBase"]
[PlyCount "76"]
[EventDate "2020.08.28"]
[EventType "k.o."]
[SourceTitle "playchess.com"]
[Source "ChessBase"]
[SourceQuality "1"]
[TimeControl "900+5"]

1. d4 {[%emt 0:00:01]} Nf6 {[%emt 0:00:02]} 2. c4 {[%emt 0:00:02]} e6 {[%emt 0:00:01]} 3. Nf3 {[%emt 0:00:02]} d5 {[%emt 0:00:01]} 4. Nc3 {[%emt 0:00:01]} Bb4 {[%emt 0:00:01]} 5. Bg5 {[%emt 0:00:01]} h6 {[%emt 0:00:03]} 6. Bxf6 {[%emt 0:00:01]} Qxf6 {[%emt 0:00:01]} 7. Qa4+ {[%emt 0:00:00]} Nc6 {[%emt 0:00:02]} 8. e3 {[%emt 0:00:01]} O-O {[%emt 0:00:02]} 9. Be2 {[%emt 0:00:01]} dxc4 {[%emt 0:00:33]} 10. O-O {[%emt 0:00:14]} Bd7 {[%emt 0:00:14]} 11. Bxc4 {[%emt 0:00:10]} Bxc3 {[%emt 0:00:16]} 12. bxc3 {[%emt 0:00:00]} Qe7 {[%emt 0:00:05]} 13. Be2 {[%emt 0:00:07]} b6 {[%emt 0:00:06]} 14. Qc2 {[%emt 0:01:01]} Na5 {[%emt 0:00:16]} 15. Ne5 {[%emt 0:00:02]} Rfd8 {[%emt 0:00:58]} 16. Qe4 {[%emt 0:01:43]} Be8 {[%emt 0:00:10]} 17. Bd3 {[%emt 0:00:16]} f5 {[%emt 0:03:07]} 18. Qf4 {[%emt 0:02:28]} Nc6 {[%emt 0:01:15]} 19. e4 {[%emt 0:00:15]} Qd6 {[%emt 0:01:34]} 20. Rad1 {[%emt 0:02:37]} g5 {[%emt 0:01:07]} 21. Qf3 {[%emt 0:00:07]} Nxe5 {[%emt 0:00:02]} 22. dxe5 {[%emt 0:00:00]} Qxe5 {[%emt 0:00:00]} 23. exf5 {[%emt 0:00:02]} exf5 {[%emt 0:00:01]} 24. Bxf5 {[%emt 0:00:27]} Bf7 {[%emt 0:00:26]} 25. Bb1 {[%emt 0:00:45]} Kg7 {[%emt 0:00:19]} 26. Rde1 {[%emt 0:01:01]} Qf6 {[%emt 0:00:07]} 27. Qg3 {[%emt 0:00:33]} Qd6 {[%emt 0:01:39]} 28. f4 {[%emt 0:00:37]} Bc4 {[%emt 0:00:03]} 29. Rf3 {[%emt 0:00:21]} Re8 {[%emt 0:00:20]} 30. Rfe3 {[%emt 0:01:23]} Rxe3 {[%emt 0:00:52]} 31. Qxe3 {[%emt 0:00:00]} gxf4 {[%emt 0:00:07]} 32. Qe4 {[%emt 0:00:16]} Qc5+ {[%emt 0:00:42]} 33. Kh1 {[%emt 0:00:01]} Bd5 {[%emt 0:02:30]} 34. Qg6+ {[%emt 0:00:16]} Kf8 {[%emt 0:00:01]} 35. Qxh6+ {[%emt 0:00:02]} Kf7 {[%emt 0:00:14]} 36. Bg6+ {[%emt 0:00:06]} Kg8 {[%emt 0:00:04]} 37. Qh7+ {[%emt 0:00:07]} Kf8 {[%emt 0:00:01]} 38. Qh8+ {[%emt 0:00:01]} Bg8 {[%emt 0:00:01]} *

[Event "FIDE Online Semi Final 2020"]
[Site "Online"]
[Date "2020.08.29"]
[Round "1.2"]
[White "Harika, Dronavalli"]
[Black "Cyfka, Karina"]
[Result "*"]
[ECO "D00"]
[WhiteElo "2448"]
[BlackElo "2248"]
[Annotator "ChessBase"]
[PlyCount "76"]
[EventDate "2020.08.28"]
[EventType "k.o."]
[SourceTitle "playchess.com"]
[Source "ChessBase"]
[SourceQuality "1"]
[TimeControl "900+5"]

1. d4 {[%emt 0:00:02]} Nf6 {[%emt 0:00:02]} 2. Bg5 {[%emt 0:00:03]} c6 {[%emt 0:00:05]} 3. Bxf6 {[%emt 0:00:08]} exf6 {[%emt 0:00:10]} 4. c4 {[%emt 0:00:10]} Bb4+ {[%emt 0:00:08]} 5. Nc3 {[%emt 0:00:03]} O-O {[%emt 0:00:07]} 6. e3 {[%emt 0:00:02]} d5 {[%emt 0:00:01]} 7. cxd5 {[%emt 0:00:24]} cxd5 {[%emt 0:00:03]} 8. Nge2 {[%emt 0:00:37]} Nc6 {[%emt 0:00:15]} 9. g3 {[%emt 0:00:21]} Bg4 {[%emt 0:00:41]} 10. Bg2 {[%emt 0:00:01]} Bxe2 {[%emt 0:02:24]} 11. Kxe2 {[%emt 0:01:08]} Bxc3 {[%emt 0:00:55]} 12. bxc3 {[%emt 0:00:02]} Na5 {[%emt 0:00:15]} 13. Qa4 {[%emt 0:00:30]} a6 {[%emt 0:00:31]} 14. Rhc1 {[%emt 0:00:47]} Rc8 {[%emt 0:00:24]} 15. Ke1 {[%emt 0:01:15]} Re8 {[%emt 0:01:02]} 16. Qd1 {[%emt 0:00:45]} Qd6 {[%emt 0:00:53]} 17. Rab1 {[%emt 0:01:17]} Red8 {[%emt 0:01:26]} 18. Qa4 {[%emt 0:00:40]} Qc7 {[%emt 0:00:17]} 19. Qb4 {[%emt 0:00:11]} b5 {[%emt 0:00:28]} 20. a4 {[%emt 0:00:49]} Rb8 {[%emt 0:00:06]} 21. Qc5 {[%emt 0:01:03]} Qxc5 {[%emt 0:01:37]} 22. dxc5 {[%emt 0:00:02]} bxa4 {[%emt 0:00:16]} 23. Rxb8 {[%emt 0:00:05]} Rxb8 {[%emt 0:00:00]} 24. Bxd5 {[%emt 0:00:01]} Rc8 {[%emt 0:00:37]} 25. Ra1 {[%emt 0:01:14]} Rxc5 {[%emt 0:00:15]} 26. e4 {[%emt 0:00:03]} f5 {[%emt 0:00:43]} 27. Rxa4 {[%emt 0:00:42]} fxe4 {[%emt 0:00:05]} 28. Rxe4 {[%emt 0:00:24]} Kf8 {[%emt 0:00:06]} 29. c4 {[%emt 0:00:02]} Rc7 {[%emt 0:01:07]} 30. Kd2 {[%emt 0:00:43]} Nb3+ {[%emt 0:00:09]} 31. Kc3 {[%emt 0:00:02]} Nc5 {[%emt 0:00:01]} 32. Re1 {[%emt 0:00:04]} a5 {[%emt 0:00:13]} 33. Rb1 {[%emt 0:00:02]} Ke7 {[%emt 0:00:11]} 34. Rb8 {[%emt 0:00:17]} a4 {[%emt 0:00:17]} 35. Ra8 {[%emt 0:00:04]} g6 {[%emt 0:00:22]} 36. f4 {[%emt 0:00:21]} h5 {[%emt 0:00:02]} 37. Kd4 {[%emt 0:00:06]} Kf6 {[%emt 0:00:31]} 38. Kc3 {[%emt 0:00:39]} Kf5 {[%emt 0:00:10]} *

[Event "FIDE Online Semi Final 2020"]
[Site "Online"]
[Date "2020.08.29"]
[Round "1.2"]
[White "Janik, Igor"]
[Black "Praggnanandhaa, R."]
[Result "*"]
[ECO "E16"]
[WhiteElo "2390"]
[BlackElo "2598"]
[Annotator "ChessBase"]
[PlyCount "69"]
[EventDate "2020.08.28"]
[EventType "k.o."]
[SourceTitle "playchess.com"]
[Source "ChessBase"]
[SourceQuality "1"]
[TimeControl "900+5"]

1. d4 {[%emt 0:00:01]} Nf6 {[%emt 0:00:01]} 2. c4 {[%emt 0:00:03]} e6 {[%emt 0:00:02]} 3. Nf3 {[%emt 0:00:00]} d5 {[%emt 0:00:02]} 4. g3 {[%emt 0:00:02]} Bb4+ {[%emt 0:00:04]} 5. Nbd2 {[%emt 0:00:09]} O-O {[%emt 0:00:12]} 6. Bg2 {[%emt 0:00:05]} b6 {[%emt 0:00:05]} 7. O-O {[%emt 0:00:08]} Bb7 {[%emt 0:00:06]} 8. a3 {[%emt 0:00:12]} Be7 {[%emt 0:00:18]} 9. cxd5 {[%emt 0:00:03]} exd5 {[%emt 0:00:12]} 10. b4 {[%emt 0:00:02]} a5 {[%emt 0:00:05]} 11. b5 {[%emt 0:00:02]} c6 {[%emt 0:00:02]} 12. bxc6 {[%emt 0:00:01]} Nxc6 {[%emt 0:00:00]} 13. Bb2 {[%emt 0:00:01]} a4 {[%emt 0:00:49]} 14. Qb1 {[%emt 0:00:21]} b5 {[%emt 0:01:02]} 15. Rc1 {[%emt 0:02:28]} Qb6 {[%emt 0:01:28]} 16. e3 {[%emt 0:01:35]} Rfc8 {[%emt 0:02:47]} 17. Ne5 {[%emt 0:01:33]} Na5 {[%emt 0:02:29]} 18. Bc3 {[%emt 0:02:24]} Qa6 {[%emt 0:01:14]} 19. Nd3 {[%emt 0:02:50]} Nc4 {[%emt 0:01:14]} 20. Bb4 {[%emt 0:00:17]} Nxd2 {[%emt 0:02:11]} 21. Bxd2 {[%emt 0:00:05]} Ne4 {[%emt 0:00:12]} 22. Bb4 {[%emt 0:00:17]} Qf6 {[%emt 0:00:57]} 23. Rxc8+ {[%emt 0:00:28]} Rxc8 {[%emt 0:00:27]} 24. Bxe7 {[%emt 0:00:01]} Qxe7 {[%emt 0:00:03]} 25. Qxb5 {[%emt 0:00:15]} Nc3 {[%emt 0:00:30]} 26. Qb4 {[%emt 0:00:13]} Qxb4 {[%emt 0:00:13]} 27. Nxb4 {[%emt 0:00:05]} Kf8 {[%emt 0:00:03]} 28. Kf1 {[%emt 0:00:08]} Ke7 {[%emt 0:00:01]} 29. Ke1 {[%emt 0:00:13]} Kd6 {[%emt 0:00:03]} 30. Kd2 {[%emt 0:00:00]} Rc7 {[%emt 0:00:09]} 31. Nd3 {[%emt 0:00:09]} Bc8 {[%emt 0:00:20]} 32. Nc5 {[%emt 0:00:04]} Nb5 {[%emt 0:00:02]} 33. Bf1 {[%emt 0:00:04]} Na7 {[%emt 0:00:08]} 34. Nxa4 {[%emt 0:00:07]} Nc6 {[%emt 0:00:02]} 35. Nc5 {[%emt 0:00:11]} *